Cogmind - Beta 11.1 @@@ ROGUE MODE // 2022.10.20 @ 21:24:19 Player: heavymetalmidis Result: Destroyed by G-34 Mercenary with Small Laser Performance ------------- Evolutions (0) 0 Regions Visited (1) 200 Robots Destroyed (4) 20 Value Destroyed (149) 149 Prototype IDs (0) 0 Alien Tech Used (0) 0 Bonus (0) 0 TOTAL SCORE: 369 Bonus ------- None Cogmind --------- Core Integrity 0/250 Matter 300/300 Energy 100/100 System Corruption 0% Temperature Cool (6) Movement Core (200) Ox3 Location -10/Materials Parts ------- > --- POWER (1) -------- (None) > --- PROPULSION (2) --- (None) > --- UTILITY (2) ------ Small Storage Unit Terrain Scanner > --- WEAPON (2) ------- Autogun Mace > --- INVENTORY (8) ---- Aluminum Leg High-capacity Matter Pod (72) Terrain Scanner Autogun Autogun Autogun Plasma Cutter Plasma Cutter Peak State ------------ > --- POWER ------------ Ion Engine > --- PROPULSION ------- Light Treads Light Treads > --- UTILITY ---------- Small Storage Unit Terrain Scanner > --- WEAPON ----------- Autogun Autogun > --- INVENTORY -------- Light Ion Engine Aluminum Leg Aluminum Leg Autogun Autogun Plasma Cutter Plasma Cutter Mace [Rating: 10] Favorites ----------- Power Ion Engine Engine Ion Engine Propulsion Light Treads Treads Light Treads Wheel Wheel Utility Small Storage Unit Device Terrain Scanner Storage Small Storage Unit Weapon Autogun Ballistic Gun Autogun Impact Weapon Mace Build | -11 -10 ------- Run | Scr Mat Slots Evolved . | . . Power . | . . Propulsion . | . . Utility . | . . Weapon . | . . Parts Attached 12 | 4 8 Power 3 | 1 2 Engine 3 | 1 2 Core . | . . Reactor . | . . Propulsion 4 | 2 2 Treads 2 | . 2 Leg . | . . Wheel 2 | 2 . Hover . | . . Flight . | . . Utility 2 | 1 1 Device 1 | . 1 Storage 1 | 1 . Processor . | . . Hackware . | . . Protection . | . . Artifact . | . . Weapon 3 | . 3 Energy Gun . | . . Energy Cannon . | . . Ballistic Gun 2 | . 2 Ballistic Cannon . | . . Launcher . | . . Special Weapon . | . . Impact Weapon 1 | . 1 Slashing Weapon . | . . Piercing Weapon . | . . Special Melee Weapon . | . . Unidentified Prototypes . | . . Parts Lost 4 | . 4 Power 2 | . 2 Propulsion 2 | . 2 Utility . | . . Weapon . | . . Highest Loss Streak 3 | . 3 To Critical Strikes . | . . Average Slot Usage (%) 96 | . 96 Engine 13 | . 13 Treads 25 | . 25 Device 12 | . 12 Storage 14 | . 14 Ballistic Gun 22 | . 22 Impact Weapon 5 | . 5 Naked Turns . | . . Heaviest Build 17 | 8 17 Greatest Support 40 | 20 40 Greatest Overweight (x) . | . . Average Overweight (x) . | . . Largest Inventory Capacity 8 | 8 8 Average Capacity 7 | 6 8 Most Carried 8 | 8 8 Average Carried 7 | 5 7 Final Capacity 8 | 8 8 Final Carried 8 | 8 8 Class Distribution -------------------- 100% | Mutant Dominant Class ---------------- Mutant | -10/Materials Resources | -11 -10 ----------- Run | Scr Mat Matter Collected 396 | 240 156 Remotely . | . . Salvage Created 156 | . 156 Parts 4 | . 4 Haulers Intercepted . | . . Recyclers Shooed 1 | . 1 Parts Field Recycled . | . . Retrieved Matter . | . . Parts Self-Destructed . | . . Prevented . | . . Kills | -11 -10 ------- Run | Scr Mat Combat Hostiles Destroyed 4 | . 4 Melee 2 | . 2 Classes Destroyed 1 | . 1 Grunt 4 | . 4 Best Kill Streak 4 | . 4 Combat Bots Only 4 | . 4 Max Kills in Single Turn 1 | . 1 Gunslinging . | . . Exploded . | . . Melee 1 | . 1 Uniques/NPCs Destroyed . | . . Combat | -11 -10 -------- Run | Scr Mat Damage Taken 885 | . 885 Core 253 | . 253 Absorbed by Shields . | . . Core Remaining (%) 100 | 100 . Volleys Fired 6 | . 6 Largest 1 | . 1 Hottest 23 | . 23 Shots Fired 6 | . 6 Gun 6 | . 6 Cannon . | . . Launcher . | . . Special . | . . Kinetic 6 | . 6 Thermal . | . . Explosive . | . . Electromagnetic . | . . Robot Hit Streak 2 | . 2 Robot Miss Streak 2 | . 2 Penetration Max . | . . Secondary Targets . | . . Shots Hit Robots 15 | . 15 Core Hits 1 | . 1 Critical Kills . | . . Critical Parts Destroyed 4 | . 4 Critical Strikes 4 | . 4 Smash 4 | . 4 Melee Attacks 16 | . 16 Impact 16 | . 16 Slashing . | . . Piercing . | . . Sneak Attacks 1 | . 1 Combat Hostiles . | . . Follow-up Attacks . | . . Damage Inflicted 466 | . 466 Guns 50 | . 50 Cannons . | . . Explosions . | . . Melee 416 | . 416 Ramming . | . . Kinetic 50 | . 50 Thermal . | . . Explosive . | . . Electromagnetic . | . . Impact 416 | . 416 Slashing . | . . Piercing . | . . Highest Corruption . | . . Average Corruption . | . . Corruption Purged . | . . Corruption Blocked . | . . Overload Shots . | . . Overflow Damage 114 | . 114 Projectiles . | . . Explosions . | . . Melee 114 | . 114 Knockbacks 7 | . 7 Impact 6 | . 6 Kinetic . | . . Secondary 1 | . 1 Self-Inflicted Damage . | . . Shots . | . . Rammed . | . . Targets Rammed . | . . Kicked . | . . Crushed . | . . Highest Temperature 12 | . 12 Average Temperature 5 | . 5 Received Heat Transfer 531 | . 531 Siege Activations . | . . Robots Corrupted . | . . Combat Hostiles . | . . Parts Fried 1 | . 1 Impact Corruptions 6 | . 6 Robots Melted . | . . Combat Hostiles . | . . Parts Melted . | . . Heat Transferred . | . . Parts Sabotaged . | . . Parts Stolen . | . . Parts Stripped . | . . Power Chain Reactions . | . . Missiles Intercepted . | . . Alert | -11 -10 ------- Run | Scr Mat Peak Influence 115 | . 115 Initial . | . . Average 36 | . 38 Maximum Alert Level . | . . Low Security (%) 100 | 100 100 Level 1 . | . . Level 2 . | . . Level 3 . | . . Level 4 . | . . Level 5 . | . . High Security . | . . Max Security . | . . Squads Dispatched . | . . Investigation . | . . Extermination . | . . Reinforcement . | . . Assault . | . . Garrison . | . . Intercept . | . . Searches Triggered . | . . Construction Impeded . | . . Haulers Reinforced . | . . Active Scanning Responses . | . . Cargo Convoy Interrupts . | . . Stealth | -11 -10 --------- Run | Scr Mat Distress Signals 1 | . 1 Communications Jammed . | . . Distress Signals . | . . Times Spotted 12 | . 12 Peak Tracking Total 5 | . 5 Tactical Retreats 3 | . 3 Traps | -11 -10 ------- Run | Scr Mat Traps Triggered . | . . Indirectly . | . . Trap Hack Attempts . | . . Triggered . | . . Disarmed . | . . Reprogrammed . | . . Reused . | . . Traps Extracted . | . . Installed . | . . Triggered . | . . Machines | -11 -10 ---------- Run | Scr Mat Machines Disabled . | . . Max in Single Turn . | . . Machines Sabotaged . | . . Garrisons Compromised . | . . Overloaded Fab Kills . | . . Hacking | -11 -10 --------- Run | Scr Mat Machines Accessed . | . . Terminals . | . . Fabricators . | . . Repair Stations . | . . Recycling Units . | . . Scanalyzers . | . . Garrison Access . | . . Total Hacks . | . . Successful . | . . Failed . | . . Catastrophic . | . . Database Lockouts . | . . Manual . | . . Terminals . | . . Fabricators . | . . Repair Stations . | . . Recycling Units . | . . Scanalyzers . | . . Garrison Access . | . . Terminal Hacks . | . . Fabricator Hacks . | . . Repair Station Hacks . | . . Recycling Unit Hacks . | . . Scanalyzer . | . . Garrison Access Hacks . | . . Unauthorized Hacks . | . . Terminals . | . . Fabricators . | . . Repair Stations . | . . Recycling Units . | . . Scanalyzers . | . . Garrison Access . | . . Data Cores Recovered . | . . Used . | . . Hacking Detections . | . . Full Trace Events . | . . Feedback Events . | . . Feedback Blocked . | . . Robot Schematics Acquired . | . . Robots Built . | . . Authchips . | . . Time . | . . Total Robot Build Rating . | . . Part Schematics Acquired . | . . Parts Built . | . . Authchips . | . . Time . | . . Total Part Build Rating . | . . Parts Repaired . | . . Time . | . . Parts Recycled . | . . Recycled Matter . | . . Retrieved Matter . | . . Retrieved Components . | . . Parts Scanalyzed . | . . Part Schematics Acquired . | . . Parts Damaged . | . . Bothacking | -11 -10 ------------ Run | Scr Mat Used RIF Installer . | . . Robots Hacked . | . . Non-combat . | . . Combat . | . . Robot Hacks Applied . | . . Relay Couplers Released . | . . Fabnet Peak Effective % . | . . Robots Rewired . | . . Allies Hacked . | . . Hacks Repelled . | . . Allies | -11 -10 -------- Run | Scr Mat Total Allies . | . . Largest Group . | . . Highest-Rated Group . | . . Highest-Rated Ally . | . . Total Orders . | . . Ally Attacks . | . . Total Damage . | . . Kills . | . . Allies Corrupted . | . . Allies Melted . | . . Intel | -11 -10 ------- Run | Scr Mat Robot Analysis Total . | . . Derelict Logs Recovered . | . . Drone Launches . | . . Drone Recoveries . | . . Exploration | -11 -10 ------------- Run | Scr Mat Turns Passed 722 | 42 680 Spaces Moved 363 | 40 323 Core 13 | 13 . Treads 309 | . 309 Legs . | . . Wheels 41 | 27 14 Hover . | . . Flight . | . . Fastest Speed 50 | 50 80 Average Speed 147 | 70 156 Slowest Speed 160 | 80 160 Overloaded Moves . | . . Propulsion Burnouts . | . . Robots Hopped . | . . Cave-ins Triggered . | . . Exploration Rate (%) 21 | 3 40 Regions Visited 1 Branch Regions . Pre-discovered Areas . | . . Known Exits Taken . | . . Unknown Exits Taken 1 | 1 . Scrap Searched . | . . Spaces Dug . | . . Terrain Destroyed . | . . Melee . | . . Projectile . | . . AOE . | . . Terrain Rammed . | . . Walls Destroyed . | . . Machines Disabled . | . . Actions | -11 -10 --------- Run | Scr Mat Total 519 | 52 467 Wait 91 | . 91 Move 362 | 39 323 Hop . | . . Pick Up 21 | 9 12 Fast Attach 6 | 3 3 Attach 2 | 1 1 Detach . | . . Swap 4 | . 4 Drop 11 | . 11 Fire 6 | . 6 Melee 16 | . 16 Ram . | . . Kick . | . . Crush . | . . Escape Stasis . | . . Rewire . | . . Trap . | . . Miscellaneous . | . . Route ------- -11/Scrapyard -10/Materials (discovered 1 exit: [*Min]) History --------- Turn | Location | Event 6 | -11/Scrapyard | Discovered new exit (range 14) 43 | -11/Scrapyard | Entered Materials 314 | -10/Materials | Build established: Mutant 673 | -10/Materials | Core integrity fell below 50% 675 | -10/Materials | Discovered new exit (range 9) 702 | -10/Materials | Core integrity fell below 20% 723 | -10/Materials | Destroyed by G-34 Mercenary with Small Laser Last Messages --------------- 00509_ G-34 Mercenary knocked back. 00520_ R-06 Scavenger collects Corrupted Aluminum Leg. 00521_ Sneak attack on R-06 Scavenger. 00521_ R-06 Scavenger knocked back. 00524_ Acquired 35 matter. 00544_ Acquired 34 matter. 00548_ Acquired Aluminum Leg. 00557_ Connecting with Terminal... 00630_ Critical hit (Burn: +37). 00630_ G-47 Trooper knocked back. 00632_ Processing Tank disabled. 00645_ Critical hit (Burn: +37). 00657_ K-01 Serf cleans the Hadron Collector. 00664_ Lgt. Treads destroyed. 00664_ K-01 Serf cleans the Hadron Collector. 00675_ EXIT=FOUND 00692_ Lgt. Treads destroyed. 00712_ Machine disabled. 00716_ K-01 Serf collects debris. 00717_ Ion Engine destroyed. Map ----- +----------------------------------------------------+ | | | | | | | | | | | | | | | | | | | | | ?????????????????????????????????? | | ?????????????????????????????????? | | ?????????????????????????????????? | | ?????????????????????????????????? | | ????????????#????????????????????? | | ?????????????????????????????????? | | ????#?????????????"??????????????? | | #??????????????? ????????????????? | | ?????????????????????????????????? | | ????????#####?????#??????????????? | | ???????##"""##????? ?????????????? | | ??????##"|||"##??????? ??????????? | | ??????# " ""#??????????????????? | | ??????# #??????????????????? | | ??????# < #??????????????????? | | ??????# @k #??????????????????? | | ???#??# ##??????#??????????? | | ??????## ##??#??? #??????????? | | ??####?##gg ##?????? #??????????? | | # # ####### ##+###?????? | | # """ + ????? | | ? """"" # ????? | | ??""""??+ ????? | | ???"??? ######+######### ??????? | | ?? ????????# #????? ??????? | | ???????????#""" #????? """""??? | | ?????????#?#""" #???## """"" ?? | | ??"??? ????#""" | #???## """""??? | | ?????? ????#""" #???# ???? | | ???????????# = #???# ????? | | ????#??????#/######???# ?????? | | ???????#???# ########## #??????? | | ???????????# ## """"" # #?????#? | | ???#???????# ## """"" # #??????? | | ???????????# ## """ " + #??????? | | ??????????## ## # #??????? | | ???? ?????# + ! # #??#???? | | ????????"?# ######### ##????#? | | ??????????# #??????# #?????? | | ????????? # #??????# !#?????? | +----------------------------------------------------+ Best States ------------- Heat Dissipation 25 Energy Generation 10 Energy Capacity 250 Matter Stores 300 Matter Capacity 300 Sight Range 16 Terrain Scan Range 14 Terrain Scan Density 10 Evasion (%) 50 Recoil Reduction 2 Item Schematics ----------------- None Robot Schematics ------------------ None Fabricated ------------ Nothing Alien Tech Used ----------------- None Achievements -------------- None Challenges ------------ None Game ------ Seed LinearSlugWeb Manual? 0 Play Time 00:18:12 Cumulative 37.8 hours Start 2022.10.13 @ 08:35:20 End 2022.10.20 @ 21:24:19 Sessions 4 Manual Loads 0 Difficulty Rogue Special Mode None Game No. 11 Rogue 3 Adventurer 2 Explorer 6 Win Type - Total 0 Types 0/0/0/0/0/0/0/0/0 Lore% 20 Gallery% 28 Achievement% 26 Wizard Run 0 Options --------- ASCII 0 Keyboard 1 Movement Numpad Keybinds 0 Fullscreen 2 Font 18/Smallcaps Map View 76x50 Tactical HUD 1 Map Filters NONE Filters NONE Steam 1 RUN: aa55f709-bdd7-4cad-a491-325743af2815